bitfinex/quotes_SOLUSD_20240922
["timestamp","ask_amount","ask_price","bid_price","bid_amount"]
[1727044101747,7.0116,142.63,142.58,7.0134]
[1727044101917,0.1,142.64,142.57,17.5347]
[1727044102741,7.0122,142.61,142.57,17.5347]
[1727044103244,7.0122,142.61,142.57,24.5486]
[1727044107747,0.1,142.64,142.61,7.0121]
[1727044108253,0.1,142.64,142.62,1.40226687]
[1727044108545,0.1,142.64,142.59,39.942]
[1727044108546,7.1107,142.64,142.6,7.0126]
[1727044108745,0.1,142.64,142.63,7.0111]
[1727044108954,0.1,142.64,142.63,52.44066671]
[1727044109126,0.1,142.64,142.63,51.038964]
[1727044109323,0.1,142.64,142.63,52.05278321]
[1727044109524,0.1,142.64,142.63,51.038964]
[1727044109846,0.250327,142.72,142.67,6.2375]
[1727044110143,7.0076,142.71,142.67,6.2375]
[1727044111328,7.0077,142.7,142.67,6.2375]
[1727044111651,7.259027,142.68,142.63,84.738764]
[1727044112238,0.250327,142.68,142.63,77.727764]
[1727044112440,0.250327,142.68,142.63,16.1721]
[1727044114330,7.259027,142.68,142.63,23.1832]
[1727044114527,7.0102,142.65,142.61,6.2375]
[1727044115241,7.0107,142.64,142.61,6.2375]
[1727044117357,7.011,142.64,142.61,6.2375]
[1727044120155,7.011,142.64,142.58,17.5336]
[1727044120156,15.108,142.67,142.58,24.547]
[1727044120457,7.0112,142.63,142.58,24.547]
[1727044121779,7.0112,142.63,142.59,23.776884]
[1727044121939,7.0112,142.63,142.59,30.789884]
[1727044122138,7.0106,142.64,142.59,30.789884]
[1727044122339,7.0102,142.65,142.6,0.12549]
[1727044123152,17.772827,142.68,142.59,23.776884]
[1727044123466,7.0114,142.63,142.59,30.789784]
[1727044123653,7.0107,142.64,142.6,0.12549]
[1727044123852,7.0107,142.64,142.6,7.26358]
[1727044124289,7.0102,142.65,142.61,23.776884]
[1727044124478,7.0102,142.65,142.61,7.012]
[1727044124848,7.0097,142.66,142.61,7.012]
[1727044125051,7.0097,142.66,142.62,30.913874]
[1727044125355,7.0097,142.66,142.62,30.788384]
[1727044126560,7.0093,142.67,142.62,57.348984]
[1727044126870,7.0093,142.67,142.63,0.40625037]
[1727044127349,7.0098,142.66,142.63,0.40625037]
[1727044127548,7.0098,142.66,142.62,70.925684]
[1727044128565,0.250327,142.68,142.62,22.6087]
[1727044128786,7.011,142.64,142.62,16.0435]
[1727044128945,7.011,142.64,142.6,24.027864]
[1727044129644,7.011,142.64,142.6,31.040364]
[1727044137078,7.0103,142.65,142.6,31.040364]
[1727044138076,0.250327,142.68,142.6,31.040364]
[1727044138077,7.0098,142.66,142.61,17.53]
[1727044138280,7.0098,142.66,142.62,1.09441298]
[1727044138596,17.5233,142.67,142.6,24.027864]
[1727044139075,17.5233,142.67,142.6,23.902374]
[1727044139776,17.5257,142.65,142.55,33.5044]
[1727044141184,17.5257,142.65,142.56,23.776884]
[1727044141392,7.0121,142.61,142.57,7.26488]
[1727044141758,7.0121,142.61,142.58,23.776884]
[1727044142976,17.5257,142.65,142.58,23.776884]
[1727044143185,7.011,142.64,142.6,7.0124]
[1727044143381,7.011,142.64,142.59,24.79618]
[1727044143789,7.011,142.64,142.6,23.776884]
[1727044144287,7.0102,142.65,142.6,30.789284]
[1727044144496,7.0106,142.64,142.6,23.776884]
[1727044145581,7.0113,142.63,142.59,17.5323]
[1727044146564,7.011,142.64,142.6,30.914774]
[1727044147770,7.0102,142.65,142.61,7.0121]
[1727044148477,7.0102,142.65,142.62,0.771481]
[1727044150290,7.0102,142.65,142.6,30.914774]
[1727044150690,7.0102,142.65,142.61,7.0121]
[1727044150885,7.0098,142.66,142.62,7.13699]
[1727044151084,0.250327,142.68,142.62,0.12549]
[1727044151300,7.259027,142.68,142.64,23.902374]
[1727044151768,0.250327,142.68,142.65,7.0101]
[1727044153272,0.250327,142.68,142.67,7.0091]
[1727044153477,0.250327,142.68,142.67,31.036964]
[1727044154095,0.250327,142.68,142.65,39.7252]
[1727044154791,7.259127,142.68,142.65,15.1903]
[1727044155175,0.250327,142.68,142.65,15.1903]
[1727044155380,7.259027,142.68,142.65,15.1903]
[1727044155580,0.250327,142.68,142.64,0.12549]
[1727044156083,7.259027,142.68,142.64,7.13599]
[1727044156278,7.259027,142.68,142.64,0.12549]
[1727044158591,7.259027,142.68,142.64,7.13609]
[1727044158997,7.259027,142.68,142.65,23.776884]
[1727044161081,7.259027,142.68,142.63,0.12549]
[1727044161082,0.250327,142.68,142.63,0.12549]
[1727044161283,0.250327,142.68,142.61,15.1903]
[1727044162303,7.0106,142.64,142.61,15.1903]
[1727044162508,7.0106,142.64,142.6,16.27474448]
[1727044162883,7.0106,142.64,142.6,7.0125]
[1727044172614,0.250327,142.68,142.62,7.0116]
[1727044172615,7.01,142.66,142.62,7.0116]
[1727044172984,7.0101,142.65,142.61,7.012]
[1727044175010,7.0098,142.66,142.62,7.0116]
[1727044175313,7.0095,142.67,142.63,7.0111]
[1727044177113,7.0096,142.66,142.62,30.913874]
[1727044177921,7.0096,142.66,142.62,7.0115]
[1727044179715,0.250327,142.68,142.63,17.5276]
[1727044179918,7.0092,142.67,142.63,24.5386]
[1727044180296,7.259127,142.68,142.63,24.5386]
[1727044180491,7.259127,142.68,142.64,7.0106]
[1727044180798,7.259127,142.68,142.63,24.5385]
[1727044182633,0.250327,142.68,142.65,17.5249]
[1727044182801,0.250327,142.68,142.66,24.027864]
[1727044183118,0.250327,142.68,142.66,31.037364]
[1727044183320,0.250327,142.68,142.67,7.0091]
[1727044183632,0.250327,142.68,142.67,31.036964]
[1727044184302,0.250327,142.68,142.67,40.29061076]
[1727044193418,0.250327,142.68,142.67,24.027864]
[1727044193620,0.250327,142.68,142.65,9.25364676]
[1727044195630,0.250327,142.68,142.65,16.26374676]
[1727044195833,0.250327,142.68,142.63,16.4284]
[1727044196014,0.250327,142.68,142.63,9.25364676]
[1727044196213,7.259327,142.68,142.63,9.25364676]
[1727044196635,7.259327,142.68,142.63,16.26474676]
[1727044197014,0.250327,142.68,142.64,9.25364676]
[1727044197539,7.259027,142.68,142.64,9.25364676]
[1727044199624,0.250327,142.68,142.64,9.25364676]
[1727044201336,7.259027,142.68,142.63,23.776884]
[1727044202234,7.259027,142.68,142.63,33.03053076]
[1727044202637,0.250327,142.68,142.65,9.25364676]
[1727044202811,0.250327,142.68,142.66,9.25364676]
[1727044203011,0.250327,142.68,142.67,9.25364676]
[1727044203541,0.250327,142.68,142.67,40.16512076]
[1727044203724,0.250327,142.68,142.67,40.29061076]
[1727044204637,0.250327,142.68,142.67,60.29061076]
[1727044204939,0.250327,142.72,142.67,60.29061076]
[1727044204940,0.250327,142.72,142.71,40.28871076]
[1727044205145,0.250327,142.72,142.71,41.68505866]
[1727044205943,0.0577292,142.75,142.74,31.033564]
[1727044206117,0.0577292,142.75,142.74,41.68352094]
[1727044206318,0.0577292,142.75,142.74,61.68352094]
[1727044206850,0.0577292,142.75,142.74,60.28721076]
[1727044207935,0.0577292,142.75,142.74,61.68561939]
[1727044212225,0.0577292,142.75,142.73,17.5146]
[1727044212226,0.0577292,142.75,142.7,17.5186]
[1727044212540,0.0577292,142.75,142.7,33.77944676]
[1727044212739,0.0577292,142.75,142.71,16.26074676]
[1727044212951,0.0577292,142.75,142.72,16.26024676]
[1727044213316,0.0577292,142.75,142.74,16.25934676]
[1727044213640,0.0577292,142.75,142.73,9.25364676]
[1727044213954,0.0577292,142.75,142.73,24.027864]
[1727044214239,0.0577292,142.75,142.71,9.25364676]
[1727044215027,0.0577292,142.75,142.71,16.26074676]
[1727044215415,0.0577292,142.75,142.7,16.26124676]
[1727044216239,0.0577292,142.75,142.71,16.26064676]
[1727044216650,0.0577292,142.75,142.72,0.68394078]
[1727044216858,0.0577292,142.75,142.71,16.26064676]
[1727044218445,0.0577292,142.75,142.67,7.0091]
[1727044218446,7.0063,142.73,142.67,7.0091]
[1727044218747,7.0063,142.73,142.68,7.0086]
[1727044219327,0.0577292,142.75,142.7,9.25364676]
[1727044219531,0.0577292,142.75,142.71,16.91372899]
[1727044219737,0.0577292,142.75,142.72,0.65283648]
[1727044220557,0.0577292,142.75,142.71,9.25364676]
[1727044220731,0.0577292,142.75,142.7,16.26114676]
[1727044225359,7.0629292,142.75,142.7,16.26114676]
[1727044225857,0.0577292,142.75,142.71,9.50462676]
[1727044226053,0.0577292,142.75,142.72,9.25364676]
[1727044227155,0.0577292,142.75,142.71,16.51162676]
[1727044227334,0.0577292,142.75,142.71,7.25798]
[1727044231340,0.0577292,142.75,142.72,23.776884]
[1727044231847,0.0577292,142.75,142.71,7.25798]
[1727044232770,0.0577292,142.75,142.71,0.25098]
[1727044234771,0.0577292,142.75,142.71,9.50462676]
[1727044234945,0.0577292,142.75,142.72,7.0067]
[1727044235768,0.0577292,142.75,142.74,40.28721076]
[1727044236854,0.0577292,142.75,142.74,41.68728787]
[1727044239050,0.0577292,142.75,142.74,61.03222936]
[1727044239570,0.250327,142.77,142.76,24.5166]
[1727044239862,0.250327,142.77,142.76,78.59939144]
[1727044240360,0.250327,142.77,142.76,77.79811076]
[1727044240880,0.250327,142.81,142.8,48.537664]
[1727044241090,0.250327,142.81,142.8,77.79131076]
[1727044246158,0.4231873,142.85,142.84,7.0008]
[1727044246371,0.4231873,142.85,142.84,40.28231076]
[1727044246550,0.4231873,142.85,142.84,60.28231076]
[1727044247268,15.1008,142.91,142.87,0.12549]
[1727044247269,22.0983,142.91,142.87,0.12549]
[1727044247572,22.0983,142.91,142.83,17.5028]
[1727044247573,6.9994,142.87,142.81,20.0]
[1727044247868,6.9994,142.87,142.81,27.0019]
[1727044248068,6.9994,142.87,142.82,7.0017]
[1727044248447,17.4977,142.88,142.8,20.0]
[1727044248662,7.0004,142.85,142.8,20.0]
[1727044249167,7.0004,142.85,142.79,7.0028]
[1727044249387,7.0004,142.85,142.79,16.25644676]
[1727044249549,15.3534,142.86,142.8,24.027864]
[1727044249869,15.3534,142.86,142.79,26.76094676]
[1727044250078,15.3534,142.86,142.8,7.0027]
[1727044250079,7.0007,142.85,142.8,7.0027]
[1727044250673,15.3534,142.86,142.81,7.0022]
[1727044251085,15.3534,142.86,142.81,17.5046]
[1727044251262,15.3534,142.86,142.82,1.40009299]
[1727044251454,22.3534,142.86,142.82,1.40009299]
[1727044252689,22.3534,142.86,142.81,17.5046]
[1727044253279,22.3534,142.86,142.81,24.5067]
[1727044254162,22.3534,142.86,142.81,17.5046]
[1727044255299,7.0004,142.85,142.81,17.5046]
[1727044256286,7.0009,142.84,142.79,30.779984]
[1727044256961,7.0013,142.83,142.79,30.779984]
[1727044257884,7.0009,142.84,142.79,30.779984]
[1727044258667,7.0013,142.83,142.79,7.0031]
[1727044258870,7.0009,142.84,142.79,7.0031]
[1727044259070,7.0009,142.84,142.8,7.0027]
[1727044259369,7.0009,142.84,142.79,31.030964]
[1727044260264,0.3641407,142.85,142.75,31.94570321]
[1727044260469,0.3641407,142.85,142.75,17.5127]
[1727044260687,7.0028,142.8,142.75,24.5178]
[1727044260875,17.8653407,142.85,142.75,24.5178]
[1727044260876,7.0032,142.79,142.75,17.5127]
[1727044261277,7.0029,142.8,142.75,24.5179]
[1727044261479,22.3558,142.81,142.76,7.0047]
[1727044261785,22.3558,142.81,142.77,7.0042]
[1727044262292,7.0016,142.83,142.78,31.031464]
[1727044262471,16.5923407,142.85,142.79,7.0032]
[1727044262472,7.3650407,142.84,142.79,7.0032]
[1727044262668,0.3641407,142.84,142.8,7.0027]
[1727044262867,0.3641407,142.84,142.8,24.027864]
[1727044263498,0.3641407,142.84,142.81,17.5052]
[1727044263677,0.3641407,142.84,142.83,7.0013]
[1727044263878,0.3641407,142.84,142.83,31.029164]
[1727044265178,0.3641407,142.84,142.83,0.25098]
[1727044265372,0.3641407,142.84,142.82,23.776884]
[1727044268884,0.3641407,142.84,142.8,7.0026]
[1727044269686,7.3649407,142.84,142.8,7.0026]
[1727044270478,6.3649407,142.84,142.8,7.0026]
[1727044270880,7.0004,142.85,142.8,7.0026]
[1727044271200,16.2282,142.88,142.8,7.0026]
[1727044271201,7.0,142.86,142.81,7.0022]
[1727044271496,7.0,142.86,142.82,7.0017]
[1727044271874,6.9993,142.87,142.82,7.0017]
[1727044272183,23.2271,142.88,142.83,7.0012]
[1727044272494,7.0003,142.85,142.8,27.0026]
[1727044272701,7.0003,142.85,142.8,7.0026]
[1727044273108,7.0008,142.84,142.8,7.0026]
[1727044274882,7.0004,142.85,142.8,7.0026]
[1727044276089,7.0004,142.85,142.81,0.44069579]
[1727044280011,33.726,142.88,142.79,24.63599]
[1727044280175,23.902374,142.87,142.76,17.5109]
[1727044280381,15.9013,142.86,142.76,17.5109]
[1727044280695,33.4013,142.86,142.76,17.5109]
[1727044281203,7.0016,142.83,142.78,7.0034]
[1727044281591,7.0008,142.84,142.78,17.5089]
[1727044281790,7.0008,142.84,142.79,23.776884]
[1727044283392,7.0008,142.84,142.79,30.780084]
[1727044285182,15.9013,142.86,142.75,24.82571345]
[1727044285508,6.3333,142.85,142.75,17.5123]
[1727044286204,6.3333,142.85,142.72,20.95680321]
[1727044286205,23.8345,142.85,142.77,17.5102]
[1727044286407,23.8345,142.85,142.78,7.0033]
[1727044287314,7.0019,142.82,142.78,7.0033]
[1727044288008,6.3333,142.85,142.79,17.5076]
[1727044288185,7.001,142.84,142.79,17.5076]
[1727044288512,7.0015,142.83,142.79,24.5107]
[1727044289608,7.0008,142.84,142.79,24.5107]
[1727044289787,7.0008,142.84,142.8,7.0026]
[1727044290197,7.0008,142.84,142.79,17.5076]
[1727044290198,6.9997,142.87,142.82,31.029264]
[1727044290406,6.5946994,142.89,142.82,31.029264]
[1727044290611,6.9994,142.87,142.82,31.029264]
[1727044291193,6.9999,142.86,142.82,31.029264]
[1727044291883,6.9999,142.86,142.73,35.2910994]
[1727044291884,7.0028,142.8,142.73,35.2910994]
[1727044292095,7.0028,142.8,142.75,24.5176]
[1727044292288,7.0032,142.79,142.75,17.5125]
[1727044292913,7.0032,142.79,142.75,24.5177]
[1727044293293,7.0032,142.79,142.75,24.5176]
[1727044293489,7.0023,142.81,142.76,7.87936708]
[1727044293812,7.0024,142.81,142.77,7.0038]
[1727044294409,7.0028,142.8,142.76,7.0046]
[1727044294815,7.0028,142.8,142.75,17.63799]
[1727044294816,7.0039,142.78,142.75,0.12549]
[1727044295020,7.0044,142.77,142.73,7.2674994]
[1727044295318,7.0039,142.78,142.73,7.2674994]
[1727044296207,7.0039,142.78,142.74,7.13109]
[1727044297113,15.6999,142.82,142.76,0.12549]
[1727044297286,15.6999,142.82,142.77,7.0041]
[1727044297494,15.6999,142.82,142.76,17.5111]
[1727044297692,7.0026,142.81,142.76,24.5157]
[1727044297893,7.0033,142.79,142.76,17.5111]
[1727044298194,7.0029,142.8,142.76,17.5111]
[1727044298391,7.0024,142.81,142.76,17.5111]
[1727044298693,7.0019,142.82,142.78,7.0037]
[1727044301126,15.6999,142.85,142.76,17.5111]
[1727044301127,7.0023,142.81,142.77,31.032064]
[1727044302013,7.0018,142.82,142.78,7.0034]
[1727044303193,7.0018,142.82,142.77,31.031964]
[1727044304517,7.0007,142.85,142.8,7.0024]
[1727044304914,17.4992,142.87,142.8,7.0024]
[1727044304915,7.0009,142.84,142.8,7.0024]
[1727044305420,7.0004,142.85,142.79,24.027864]
[1727044305726,7.0004,142.85,142.8,7.0027]
[1727044306015,15.9612994,142.89,142.82,7.0016]
[1727044306016,6.9997,142.87,142.82,7.0016]
[1727044306400,6.9999,142.86,142.82,7.0016]
[1727044307212,6.9999,142.86,142.81,31.030064]
[1727044307718,6.9999,142.86,142.82,7.0016]
[1727044309797,0.1466768,142.87,142.83,7.0012]
[1727044310007,0.1466768,142.87,142.84,7.0007]
[1727044310824,0.1466768,142.87,142.85,7.0002]
[1727044313222,0.1466768,142.87,142.86,6.9998]
[1727044313829,0.1466768,142.87,142.86,31.027664]
[1727044314453,0.1466768,142.87,142.85,7.0002]
[1727044320737,0.1466768,142.87,142.84,24.62779]
[1727044320941,0.1466768,142.87,142.84,17.5016]
[1727044321958,7.1460768,142.87,142.84,17.5016]
[1727044322318,0.1466768,142.87,142.85,7.25088]
[1727044322626,0.1466768,142.87,142.86,6.9998]
[1727044323026,0.1466768,142.87,142.85,31.027964]
[1727044323420,0.1466768,142.87,142.84,17.5016]
[1727044323828,7.1459768,142.87,142.84,17.5016]
[1727044324922,0.1466768,142.87,142.84,17.5016]
[1727044325839,0.1466768,142.87,142.8,17.5058]
[1727044326038,0.1466768,142.87,142.8,24.5082]
[1727044326223,6.9999,142.86,142.81,7.0022]
[1727044327425,6.9999,142.86,142.82,7.0017]
[1727044328442,7.0004,142.85,142.81,31.029964]
[1727044329022,7.0004,142.85,142.8,24.5085]
[1727044329639,7.0004,142.85,142.81,7.0022]
[1727044330843,7.1461768,142.87,142.82,7.0016]
[1727044331029,7.1461768,142.87,142.83,7.64978165]
[1727044331235,0.1466768,142.87,142.84,7.0007]
[1727044335431,0.1466768,142.87,142.85,7.0001]
[1727044335746,0.1466768,142.87,142.86,31.027664]
[1727044340960,0.1466768,142.87,142.86,0.12549]
[1727044342253,0.1466768,142.87,142.85,7.0002]
[1727044343457,0.3407268,142.92,142.85,7.0002]
[1727044343458,0.3407268,142.92,142.91,6.9974]
[1727044343661,0.3407268,142.92,142.91,71.65837721]
[1727044343834,0.0622526,142.93,142.92,50.899274]
[1727044344151,0.0622526,142.93,142.92,51.024764]
[1727044344957,0.2508191,142.99,142.94,44.73668]
[1727044345165,0.2508191,142.99,142.98,24.72978]
[1727044345366,0.2508191,142.99,142.98,48.506664]
[1727044346540,0.2508191,142.99,142.98,49.35841932]
[1727044347047,0.2508191,142.99,142.98,83.79142253]
[1727044347249,0.1521603,143.02,143.01,48.501564]
[1727044347462,0.1521603,143.02,143.01,83.78733451]
[1727044347638,0.1521603,143.02,143.01,82.93456721]
[1727044347843,0.1521603,143.02,143.01,68.501564]
[1727044348350,0.1521603,143.02,143.01,24.4737]
[1727044348559,6.1848526,143.1,143.01,17.4812]
[1727044348560,6.1226,143.1,143.01,17.4812]
[1727044348757,0.2526458,143.02,143.01,17.4812]
[1727044349063,0.2526458,143.02,143.01,24.4736]
[1727044351845,0.2526458,143.02,142.98,17.4846]
[1727044352587,0.2526458,143.02,142.98,24.4785]
[1727044352965,0.2526458,143.02,142.99,6.9933]
[1727044353848,0.2526458,143.02,142.98,17.4846]
[1727044354069,0.2526458,143.02,143.0,17.4817]
[1727044354849,0.2526458,143.02,143.01,6.9925]
[1727044358486,0.2526458,143.02,143.01,45.45336721]
[1727044359278,0.2526458,143.02,143.01,46.12565736]
[1727044359662,0.2526458,143.02,143.01,71.48926721]
[1727044359876,0.287757,143.07,143.06,24.027864]
[1727044360078,0.287757,143.07,143.06,38.46086721]
[1727044360384,0.287757,143.07,143.06,45.45086721]
[1727044362293,0.287757,143.07,143.06,65.45086721]
[1727044366495,0.287757,143.07,143.06,86.50236721]
[1727044366805,0.287757,143.07,143.06,66.50236721]
[1727044367662,0.287757,143.07,143.06,60.34097721]
[1727044368863,0.287757,143.07,143.06,60.46646721]
[1727044371292,0.287757,143.07,143.06,80.46646721]
[1727044372286,0.1521603,143.1,143.09,24.71108]
[1727044372589,0.1521603,143.1,143.09,39.78639429]
[1727044372993,0.1521603,143.1,143.09,26.10682414]
[1727044373171,0.1521603,143.1,143.09,24.4601]
[1727044375100,0.287757,143.11,143.1,0.12549]
[1727044375396,0.287757,143.11,143.1,51.015964]
[1727044376102,0.287757,143.11,143.1,6.9881]
[1727044376598,0.287757,143.11,143.09,24.4599]
[1727044376896,0.287757,143.11,143.07,6.9891]
[1727044377498,0.287757,143.11,143.08,6.9888]
[1727044378276,0.287757,143.11,143.09,6.9885]
[1727044378577,0.287757,143.11,143.1,6.9881]
[1727044379780,0.287757,143.11,143.08,17.472]
[1727044379975,0.287757,143.11,143.08,24.461]
[1727044380174,0.287757,143.11,143.09,6.9885]
[1727044380399,0.287757,143.11,143.1,6.9881]
[1727044380907,0.287757,143.11,143.1,7.11359]
[1727044381295,0.287757,143.11,143.1,51.015964]
[1727044385485,0.287757,143.16,143.15,24.4497]
[1727044386298,0.287757,143.16,143.15,24.57519]
[1727044387409,0.287757,143.16,143.15,48.477564]
[1727044388083,0.1521603,143.19,143.18,68.472564]
[1727044388283,0.1521603,143.19,143.18,82.90556721]
[1727044390403,0.1521603,143.19,143.18,68.472564]
[1727044392504,0.2249292,143.21,143.2,6.9832]
[1727044392698,0.2249292,143.21,143.2,65.44406721]
[1727044394608,0.2249292,143.21,143.2,66.83995306]
[1727044394816,0.2249292,143.21,143.2,65.44406721]
[1727044396209,0.4214294,143.26,143.25,48.460664]
[1727044397518,0.4214294,143.26,143.25,69.85616923]
[1727044397704,0.0622526,143.28,143.27,51.007664]
[1727044398010,0.0622526,143.28,143.27,65.44066721]
[1727044399007,0.0622526,143.28,143.27,51.007664]
[1727044399214,0.0622526,143.28,143.26,6.9802]
[1727044399733,0.0622526,143.28,143.27,6.9798]
[1727044400512,0.0622526,143.28,143.27,7.23078]
[1727044401013,0.3315217,143.32,143.27,7.23078]
[1727044401014,0.3315217,143.32,143.31,44.67348]
[1727044401801,0.3315217,143.32,143.31,68.450364]
[1727044402707,0.3315217,143.32,143.31,69.84518084]
[1727044404019,0.3315217,143.32,143.31,68.450364]
[1727044404217,0.3315217,143.32,143.31,68.88639906]
[1727044404637,0.1521603,143.36,143.31,44.46389906]
[1727044404801,0.1521603,143.36,143.35,48.443564]
[1727044405000,0.1521603,143.36,143.35,48.88016481]
[1727044405207,0.1521603,143.36,143.35,68.88016481]
[1727044405923,0.1521603,143.36,143.35,68.88133909]
[1727044406221,0.1521603,143.36,143.35,68.443564]
[1727044407724,0.1521603,143.36,143.35,69.08798952]
[1727044408042,0.3315217,143.38,143.37,51.002764]
[1727044408601,1.25594859,143.4,143.37,73.27084819]
[1727044408805,1.25594859,143.4,143.39,44.53429]
[1727044409005,0.4214294,143.43,143.39,37.56039]
[1727044409232,0.4214294,143.43,143.4,6.9734]
[1727044410331,0.3043159,143.44,143.4,6.9734]
[1727044411733,0.3043159,143.44,143.39,17.4349]
[1727044412044,6.9726,143.42,143.37,6.9749]
[1727044412231,6.9726,143.42,143.36,24.4135]
[1727044412232,6.2031,143.42,143.36,24.4135]
[1727044412458,6.973,143.41,143.36,24.4135]
[1727044412607,6.9731,143.41,143.36,24.4135]
[1727044413227,13.1756,143.42,143.37,6.9749]
[1727044413613,1.7399958,143.55,143.37,6.9749]
[1727044413818,0.12549,143.49,143.37,6.9749]
[1727044414511,0.12549,143.49,143.38,6.9742]
[1727044414728,23.776884,143.51,143.37,0.25098]
[1727044414909,6.9715,143.44,143.38,17.4358]
[1727044415105,6.9711,143.45,143.4,6.9734]
[1727044415735,6.9716,143.44,143.39,6.9739]
[1727044416335,6.9711,143.45,143.4,6.9734]
[1727044418228,6.9709,143.46,143.41,24.4052]
[1727044418434,6.9711,143.45,143.41,17.4323]
[1727044418636,20.2876,143.49,143.39,7.22488]
[1727044418637,6.9715,143.44,143.39,7.22488]
[1727044418811,17.4249,143.48,143.4,6.9734]
[1727044419014,6.9716,143.44,143.4,6.9734]
[1727044419329,6.9716,143.44,143.39,7.22488]
[1727044419714,6.973,143.41,143.36,33.3219]
[1727044419930,6.9736,143.4,143.35,24.4151]
[1727044420714,6.9736,143.4,143.36,6.9753]
[1727044420916,14.5027,143.42,143.37,6.9748]
[1727044421129,21.4756,143.42,143.38,6.9744]
[1727044421329,14.5027,143.42,143.38,6.9744]
[1727044421528,6.9721,143.43,143.39,6.9739]
[1727044421731,31.9299,143.46,143.39,6.9739]
[1727044421732,6.9715,143.44,143.39,6.9739]
[1727044421925,6.9721,143.43,143.39,6.9739]
[1727044422343,6.9725,143.42,143.37,24.411]
[1727044423749,6.972,143.44,143.39,6.9739]
[1727044424338,6.9711,143.45,143.4,6.9734]
[1727044424522,6.9717,143.44,143.39,6.9738]
[1727044424724,6.9711,143.45,143.39,17.4342]
[1727044425018,14.5027,143.46,143.41,6.9729]
[1727044425019,21.4733,143.46,143.41,6.9729]
[1727044425848,21.4733,143.46,143.4,7.09889]
[1727044425849,6.9711,143.45,143.4,7.09889]
[1727044426341,6.9711,143.45,143.4,6.9734]
[1727044426543,6.9716,143.44,143.39,24.408]
[1727044426744,6.9716,143.44,143.4,6.9734]
[1727044426932,14.5027,143.46,143.4,0.12549]
[1727044428546,6.9711,143.45,143.41,6.9729]
[1727044429556,6.9717,143.44,143.4,6.9733]
[1727044429929,6.9711,143.45,143.4,6.9733]
[1727044430131,14.5027,143.46,143.41,17.4315]
[1727044430432,21.4736,143.46,143.41,24.4043]
[1727044430635,6.9716,143.44,143.38,17.56089]
[1727044430844,6.9711,143.45,143.4,6.9734]
[1727044431738,6.9711,143.45,143.41,6.9729]
[1727044433550,5.7849,143.49,143.41,34.8646]
[1727044433851,6.9699,143.48,143.42,6.972]
[1727044434029,14.5027,143.5,143.45,6.9709]
[1727044434225,14.5027,143.5,143.45,8.04934058]
[1727044434429,14.5027,143.5,143.46,6.9705]
[1727044434430,6.9686,143.5,143.46,6.9705]
[1727044434625,6.9686,143.5,143.47,1.39379587]
[1727044435147,6.9686,143.5,143.44,17.428]
[1727044435148,6.9696,143.48,143.44,17.428]
[1727044435847,17.421,143.51,143.41,17.4319]
[1727044436161,6.9724,143.43,143.39,22.0286]
[1727044436455,6.9716,143.44,143.39,22.7078]
[1727044436661,6.9716,143.44,143.4,6.9734]
[1727044437451,17.4258,143.47,143.38,17.4356]
[1727044437752,6.9721,143.43,143.38,24.4099]
[1727044437960,6.9729,143.42,143.38,17.4356]
[1727044438133,6.9731,143.41,143.36,6.9753]
[1727044438561,6.9731,143.41,143.35,17.4392]
[1727044438562,17.4284,143.45,143.35,17.4392]
[1727044438746,6.9735,143.4,143.35,24.415]
[1727044439566,6.9735,143.4,143.36,6.9753]
[1727044439855,17.4284,143.45,143.32,39.472]
[1727044440354,6.9744,143.38,143.33,6.9767]
[1727044441648,6.974,143.39,143.34,6.9763]
[1727044442036,14.5027,143.45,143.35,0.63435507]
[1727044442238,20.2876,143.5,143.45,6.9707]
[1727044442441,6.9691,143.49,143.44,6.9715]
[1727044442649,20.2876,143.5,143.45,0.76827385]